Workbook

Sheet INGRESO DE DATOS
A8: COTIZACIÓN DE SEGURO MÉDICO
A10: INGRESE LOS DATOS DEL PROPUESTO ASEGURADO:
C12: Nombre del Asegurado principal: | D12: NOMBRE Y APELLIDO
F14: Número de adultos en la póliza: | G14: 1 | I14: Número de hijos en la póliza: | J14: 0
F16: Edad del titular: | G16: 18 | I16: Edad de cónyuge: | J16: 18
A19: INGRESE EL NOMBRE DE LA AGENCIA ASESORA:
C21: Nombre de la Agencia: | D21: AGENCIA
A23: 3. ESCOJA EL PRODUCTO PARA VISUALIZAR LA COTIZACION RESPECTIVA :

Sheet Bupa MAX
A10: COTIZACION DE SEGURO MÉDICO
A12: BENEFICIOS | E12: Nombre del asegurado : | F12: =+'INGRESO DE DATOS'!$D$12 -> NOMBRE Y APELLIDO
E14: Broker / Agente : | F14: =+'INGRESO DE DATOS'!$D$21 -> AGENCIA
G16: Número de adultos en la póliza: | H16: =+'INGRESO DE DATOS'!$G$14 -> 1 | J16: Edad de Titular : | K16: =+'INGRESO DE DATOS'!$G$16 -> 18
G18: Número hijos (menos 24 de años): | H18: =+'INGRESO DE DATOS'!$J$14 -> 0 | J18: Edad de Cónyuge: | K18: =+'INGRESO DE DATOS'!$J$16 -> 18
G20: Fecha de cotización: | H20: =NOW() -> 2023-01-24T12:01:17.950
G22: TRUE | I22: COMPLICACIONES DE MATERNIDAD
G24: TRUE | I24: TRASPLANTE DE ORGANOS
D26: Deducibles | G26: PLAN 2 | H26: PLAN 3 | I26: PLAN 4 | J26: PLAN 5 | K26: PLAN 6
D27: Dentro o fuera del pais de residencia | G27: 2500 | H27: 5000 | I27: 10000 | J27: 20000 | K27: 50000
D29: Tarifas Anuales
D30: Prima de Titular : | G30: =VLOOKUP($K$16,Tablas!$A$6:$H$68,4,TRUE) -> 1622 | H30: =VLOOKUP($K$16,Tablas!$A$6:$H$68,5,TRUE) -> 1170 | I30: =VLOOKUP($K$16,Tablas!$A$6:$H$68,6,TRUE) -> 944 | J30: =VLOOKUP($K$16,Tablas!$A$6:$H$68,7,TRUE) -> 742 | K30: =VLOOKUP($K$16,Tablas!$A$6:$H$68,8,TRUE) -> 520
D31: Prima de Cónyuge | G31: =IF($H$16=1,0,(VLOOKUP($K$18,Tablas!$A$6:$H$68,4,TRUE))) -> 0 | H31: =IF($H$16=1,0,(VLOOKUP($K$18,Tablas!$A$6:$H$68,5,TRUE))) -> 0 | I31: =IF($H$16=1,0,(VLOOKUP($K$18,Tablas!$A$6:$H$68,6,TRUE))) -> 0 | J31: =IF($H$16=1,0,(VLOOKUP($K$18,Tablas!$A$6:$H$68,7,TRUE))) -> 0 | K31: =IF($H$16=1,0,(VLOOKUP($K$18,Tablas!$A$6:$H$68,8,TRUE))) -> 0
D32: Primas Hijos : | G32: =IF($H$18=0,0,(VLOOKUP($H$18,Tablas!$A$69:$H$71,4,TRUE))) -> 0 | H32: =IF($H$18=0,0,(VLOOKUP($H$18,Tablas!$A$69:$H$71,5,TRUE))) -> 0 | I32: =IF($H$18=0,0,(VLOOKUP($H$18,Tablas!$A$69:$H$71,6,TRUE))) -> 0 | J32: =IF($H$18=0,0,(VLOOKUP($H$18,Tablas!$A$69:$H$71,7,TRUE))) -> 0 | K32: =IF($H$18=0,0,(VLOOKUP($H$18,Tablas!$A$69:$H$71,8,TRUE))) -> 0
D33: Prima Rider Complic. Maternidad | G33: =+IF($G$22=FALSE,0,Tablas!D$72) -> 225 | H33: =+IF($G$22=FALSE,0,Tablas!E$72) -> 225 | I33: =+IF($G$22=FALSE,0,Tablas!F$72) -> 225 | J33: =+IF($G$22=FALSE,0,Tablas!G$72) -> 225 | K33: =+IF($G$22=FALSE,0,Tablas!H$72) -> 225
D34: Prima Rider Trasplante Organos | G34: =+IF($G$24=FALSE,0,Tablas!D$73) -> 300 | H34: =+IF($G$24=FALSE,0,Tablas!E$73) -> 300 | I34: =+IF($G$24=FALSE,0,Tablas!F$73) -> 300 | J34: =+IF($G$24=FALSE,0,Tablas!G$73) -> 300 | K34: =+IF($G$24=FALSE,0,Tablas!H$73) -> 300
D35: TOTAL PRIMA NETA : | G35: =SUM(G30:G34) -> 2147 | H35: 1695 | I35: 1469 | J35: 1267 | K35: 1045
D36: Costo Administrativo Anual : | G36: 75 | H36: 75 | I36: 75 | J36: 75 | K36: 75
D37: GRAN TOTAL : | G37: =SUM(G35:G36) -> 2222 | H37: =SUM(H35:H36) -> 1770 | I37: =SUM(I35:I36) -> 1544 | J37: =SUM(J35:J36) -> 1342 | K37: =SUM(K35:K36) -> 1120
D39: Tarifas Semestrales
D40: Prima de Titular : | G40: =VLOOKUP($K$16,Tablas!$A$78:$H$140,4,TRUE) -> 859.66 | H40: =VLOOKUP($K$16,Tablas!$A$78:$H$140,5,TRUE) -> 620.1 | I40: =VLOOKUP($K$16,Tablas!$A$78:$H$140,6,TRUE) -> 500.32 | J40: =VLOOKUP($K$16,Tablas!$A$78:$H$140,7,TRUE) -> 393.26 | K40: =VLOOKUP($K$16,Tablas!$A$78:$H$140,8,TRUE) -> 275.6
D41: Prima de Cónyuge | G41: =IF($H$16=1,0,(VLOOKUP($K$18,Tablas!$A$78:$H$140,4,TRUE))) -> 0 | H41: =IF($H$16=1,0,(VLOOKUP($K$18,Tablas!$A$78:$H$140,5,TRUE))) -> 0 | I41: =IF($H$16=1,0,(VLOOKUP($K$18,Tablas!$A$78:$H$140,6,TRUE))) -> 0 | J41: =IF($H$16=1,0,(VLOOKUP($K$18,Tablas!$A$78:$H$140,7,TRUE))) -> 0 | K41: =IF($H$16=1,0,(VLOOKUP($K$18,Tablas!$A$78:$H$140,8,TRUE))) -> 0
D42: Primas Hijos : | G42: =IF($H$18=0,0,(VLOOKUP($H$18,Tablas!$A$141:$H$143,4,TRUE))) -> 0 | H42: =IF($H$18=0,0,(VLOOKUP($H$18,Tablas!$A$141:$H$143,5,TRUE))) -> 0 | I42: =IF($H$18=0,0,(VLOOKUP($H$18,Tablas!$A$141:$H$143,6,TRUE))) -> 0 | J42: =IF($H$18=0,0,(VLOOKUP($H$18,Tablas!$A$141:$H$143,7,TRUE))) -> 0 | K42: =IF($H$18=0,0,(VLOOKUP($H$18,Tablas!$A$141:$H$143,8,TRUE))) -> 0
D43: Prima Rider Complic. Maternidad | G43: =+IF($G$22=FALSE,0,Tablas!D$144) -> 119.25 | H43: =+IF($G$22=FALSE,0,Tablas!E$144) -> 119.25 | I43: =+IF($G$22=FALSE,0,Tablas!F$144) -> 119.25 | J43: =+IF($G$22=FALSE,0,Tablas!G$144) -> 119.25 | K43: =+IF($G$22=FALSE,0,Tablas!H$144) -> 119.25
D44: Prima Rider Trasplante Organos | G44: =+IF($G$24=FALSE,0,Tablas!D$145) -> 159 | H44: =+IF($G$24=FALSE,0,Tablas!E$145) -> 159 | I44: =+IF($G$24=FALSE,0,Tablas!F$145) -> 159 | J44: =+IF($G$24=FALSE,0,Tablas!G$145) -> 159 | K44: =+IF($G$24=FALSE,0,Tablas!H$145) -> 159
D45: TOTAL PRIMA NETA : | G45: =SUM(G40:G44) -> 1137.91 | H45: 898.35 | I45: 778.57 | J45: 671.51 | K45: 553.85
D46: Costo Administrativo Anual : | G46: 75 | H46: 75 | I46: 75 | J46: 75 | K46: 75
D47: GRAN TOTAL (1ra Cuota) : | G47: =SUM(G45:G46) -> 1212.91 | H47: =SUM(H45:H46) -> 973.35 | I47: =SUM(I45:I46) -> 853.57 | J47: =SUM(J45:J46) -> 746.51 | K47: =SUM(K45:K46) -> 628.85
D48: GRAN TOTAL (2da Cuota) : | G48: =G45 -> 1137.91 | H48: =H45 -> 898.35 | I48: 778.57 | J48: 671.51 | K48: 553.85
D49: Tarifas en US $ - Válidas desde 01 Enero 2023
D50: Este presupuesto solamente tiene carácter informativo y en ningún momento expresa compromiso legal para suministrarle cobertura de seguro. La emisión de una póliza de seguro Bupa está sujeta a todas las evaluaciones de riesgo por parte de Bupa y a la recepción de todos los pagos de prima requeridos.

Sheet Tablas (hidden)
A2: BUPA MAX | J2: FACTOR SEMESTRAL : | L2: 0.53
A3: TARIFAS ANUALES
A4: EDAD
C5: DW1 | D5: DW2 | E5: DW3 | F5: DW4 | G5: DW5 | H5: DW6 | I5: DW2 | J5: DW3 | K5: DW4 | L5: DW5 | M5: DW6
A6: 18 | C6: 6567 | D6: 1622 | E6: 1170 | F6: 944 | G6: 742 | H6: 520 | I6: 0 | J6: 0 | K6: 0 | L6: 0 | M6: 0
A7: 19 | D7: 1680 | E7: 1210 | F7: 977 | G7: 763 | H7: 535 | I7: 0 | J7: 0 | K7: 0 | L7: 0 | M7: 0
A8: 20 | D8: 1729 | E8: 1247 | F8: 1009 | G8: 790 | H8: 554 | I8: 0 | J8: 0 | K8: 0 | L8: 0 | M8: 0
A9: 21 | D9: 1787 | E9: 1287 | F9: 1040 | G9: 811 | H9: 570 | I9: 0 | J9: 0 | K9: 0 | L9: 0 | M9: 0
A10: 22 | D10: 1843 | E10: 1327 | F10: 1074 | G10: 839 | H10: 589 | I10: 0 | J10: 0 | K10: 0 | L10: 0 | M10: 0
A11: 23 | D11: 1901 | E11: 1366 | F11: 1105 | G11: 865 | H11: 608 | I11: 0 | J11: 0 | K11: 0 | L11: 0 | M11: 0
A12: 24 | D12: 1960 | E12: 1405 | F12: 1139 | G12: 888 | H12: 624 | I12: 0 | J12: 0 | K12: 0 | L12: 0 | M12: 0
A13: 25 | C13: 6892 | D13: 2015 | E13: 1449 | F13: 1170 | G13: 912 | H13: 641 | I13: 0 | J13: 0 | K13: 0 | L13: 0 | M13: 0
A14: 26 | D14: 2074 | E14: 1489 | F14: 1208 | G14: 937 | H14: 658 | I14: 0 | J14: 0 | K14: 0 | L14: 0 | M14: 0
A15: 27 | D15: 2132 | E15: 1529 | F15: 1240 | G15: 961 | H15: 673 | I15: 0 | J15: 0 | K15: 0 | L15: 0 | M15: 0
A16: 28 | D16: 2261 | E16: 1621 | F16: 1311 | G16: 1019 | H16: 714 | I16: 0 | J16: 0 | K16: 0 | L16: 0 | M16: 0
A17: 29 | D17: 2385 | E17: 1713 | F17: 1380 | G17: 1074 | H17: 751 | I17: 0 | J17: 0 | K17: 0 | L17: 0 | M17: 0
A18: 30 | C18: 7125 | D18: 2512 | E18: 1804 | F18: 1455 | G18: 1127 | H18: 791 | I18: 0 | J18: 0 | K18: 0 | L18: 0 | M18: 0
A19: 31 | D19: 2639 | E19: 1901 | F19: 1529 | G19: 1182 | H19: 828 | I19: 0 | J19: 0 | K19: 0 | L19: 0 | M19: 0
A20: 32 | D20: 2766 | E20: 1995 | F20: 1600 | G20: 1239 | H20: 868 | I20: 0 | J20: 0 | K20: 0 | L20: 0 | M20: 0
A21: 33 | D21: 2832 | E21: 2034 | F21: 1639 | G21: 1261 | H21: 882 | I21: 0 | J21: 0 | K21: 0 | L21: 0 | M21: 0
A22: 34 | D22: 2899 | E22: 2074 | F22: 1682 | G22: 1286 | H22: 900 | I22: 0 | J22: 0 | K22: 0 | L22: 0 | M22: 0
A23: 35 | C23: 7966 | D23: 2963 | E23: 2114 | F23: 1720 | G23: 1306 | H23: 918 | I23: 0 | J23: 0 | K23: 0 | L23: 0 | M23: 0
A24: 36 | D24: 3028 | E24: 2153 | F24: 1760 | G24: 1329 | H24: 932 | I24: 0 | J24: 0 | K24: 0 | L24: 0 | M24: 0
A25: 37 | D25: 3098 | E25: 2192 | F25: 1800 | G25: 1352 | H25: 944 | I25: 0 | J25: 0 | K25: 0 | L25: 0 | M25: 0
A26: 38 | D26: 3198 | E26: 2263 | F26: 1850 | G26: 1395 | H26: 977 | I26: 0 | J26: 0 | K26: 0 | L26: 0 | M26: 0
A27: 39 | D27: 3299 | E27: 2330 | F27: 1901 | G27: 1435 | H27: 1005 | I27: 0 | J27: 0 | K27: 0 | L27: 0 | M27: 0
A28: 40 | C28: 9219 | D28: 3404 | E28: 2400 | F28: 1951 | G28: 1476 | H28: 1036 | I28: 0 | J28: 0 | K28: 0 | L28: 0 | M28: 0
A29: 41 | D29: 3503 | E29: 2470 | F29: 2005 | G29: 1520 | H29: 1062 | I29: 0 | J29: 0 | K29: 0 | L29: 0 | M29: 0
A30: 42 | D30: 3607 | E30: 2534 | F30: 2052 | G30: 1559 | H30: 1091 | I30: 0 | J30: 0 | K30: 0 | L30: 0 | M30: 0
A31: 43 | D31: 3745 | E31: 2629 | F31: 2128 | G31: 1619 | H31: 1132 | I31: 0 | J31: 0 | K31: 0 | L31: 0 | M31: 0
A32: 44 | D32: 3886 | E32: 2726 | F32: 2207 | G32: 1675 | H32: 1174 | I32: 0 | J32: 0 | K32: 0 | L32: 0 | M32: 0
A33: 45 | C33: 10294 | D33: 4032 | E33: 2821 | F33: 2282 | G33: 1730 | H33: 1213 | I33: 0 | J33: 0 | K33: 0 | L33: 0 | M33: 0
A34: 46 | D34: 4169 | E34: 2915 | F34: 2359 | G34: 1792 | H34: 1252 | I34: 0 | J34: 0 | K34: 0 | L34: 0 | M34: 0
A35: 47 | D35: 4311 | E35: 3008 | F35: 2436 | G35: 1850 | H35: 1296 | I35: 0 | J35: 0 | K35: 0 | L35: 0 | M35: 0
A36: 48 | D36: 4547 | E36: 3173 | F36: 2582 | G36: 1975 | H36: 1380 | I36: 0 | J36: 0 | K36: 0 | L36: 0 | M36: 0
A37: 49 | D37: 4783 | E37: 3335 | F37: 2728 | G37: 2099 | H37: 1471 | I37: 0 | J37: 0 | K37: 0 | L37: 0 | M37: 0
A38: 50 | C38: 13377 | D38: 5016 | E38: 3498 | F38: 2878 | G38: 2224 | H38: 1559 | I38: 0 | J38: 0 | K38: 0 | L38: 0 | M38: 0
A39: 51 | D39: 5251 | E39: 3661 | F39: 3024 | G39: 2348 | H39: 1644 | I39: 0 | J39: 0 | K39: 0 | L39: 0 | M39: 0
A40: 52 | D40: 5487 | E40: 3821 | F40: 3171 | G40: 2475 | H40: 1730 | I40: 0 | J40: 0 | K40: 0 | L40: 0 | M40: 0
A41: 53 | D41: 5701 | E41: 4011 | F41: 3357 | G41: 2593 | H41: 1820 | I41: 0 | J41: 0 | K41: 0 | L41: 0 | M41: 0
A42: 54 | D42: 5913 | E42: 4196 | F42: 3544 | G42: 2714 | H42: 1901 | I42: 0 | J42: 0 | K42: 0 | L42: 0 | M42: 0
A43: 55 | C43: 14228 | D43: 6127 | E43: 4384 | F43: 3728 | G43: 2832 | H43: 1985 | I43: 0 | J43: 0 | K43: 0 | L43: 0 | M43: 0
A44: 56 | D44: 6340 | E44: 4571 | F44: 3922 | G44: 2951 | H44: 2068 | I44: 0 | J44: 0 | K44: 0 | L44: 0 | M44: 0
A45: 57 | D45: 6559 | E45: 4757 | F45: 4109 | G45: 3068 | H45: 2150 | I45: 0 | J45: 0 | K45: 0 | L45: 0 | M45: 0
A46: 58 | D46: 6904 | E46: 4948 | F46: 4253 | G46: 3190 | H46: 2235 | I46: 0 | J46: 0 | K46: 0 | L46: 0 | M46: 0
A47: 59 | D47: 7246 | E47: 5133 | F47: 4402 | G47: 3306 | H47: 2318 | I47: 0 | J47: 0 | K47: 0 | L47: 0 | M47: 0
A48: 60 | C48: 15133 | D48: 7594 | E48: 5318 | F48: 4547 | G48: 3427 | H48: 2400 | I48: 0 | J48: 0 | K48: 0 | L48: 0 | M48: 0
A49: 61 | C49: 16253 | D49: 7881 | E49: 5513 | F49: 4745 | G49: 3561 | H49: 2491 | I49: 0 | J49: 0 | K49: 0 | L49: 0 | M49: 0
A50: 62 | C50: 17785 | D50: 8239 | E50: 5772 | F50: 4975 | G50: 3726 | H50: 2610 | I50: 0 | J50: 0 | K50: 0 | L50: 0 | M50: 0
A51: 63 | C51: 18901 | D51: 8663 | E51: 6064 | F51: 5231 | G51: 3920 | H51: 2744 | I51: 0 | J51: 0 | K51: 0 | L51: 0 | M51: 0
A52: 64 | C52: 20440 | D52: 9151 | E52: 6409 | F52: 5536 | G52: 4145 | H52: 2901 | I52: 0 | J52: 0 | K52: 0 | L52: 0 | M52: 0
A53: 65 | C53: 21418 | D53: 9567 | E53: 6866 | F53: 5927 | G53: 4425 | H53: 3100 | I53: 0 | J53: 0 | K53: 0 | L53: 0 | M53: 0
A54: 66 | C54: 22390 | D54: 10335 | E54: 7390 | F54: 6377 | G54: 4756 | H54: 3330 | I54: 0 | J54: 0 | K54: 0 | L54: 0 | M54: 0
A55: 67 | C55: 24449 | D55: 11168 | E55: 7985 | F55: 6890 | G55: 5141 | H55: 3595 | I55: 0 | J55: 0 | K55: 0 | L55: 0 | M55: 0
A56: 68 | C56: 27063 | D56: 12103 | E56: 8663 | F56: 7473 | G56: 5580 | H56: 3904 | I56: 0 | J56: 0 | K56: 0 | L56: 0 | M56: 0
A57: 69 | C57: 29766 | D57: 13219 | E57: 9463 | F57: 8162 | G57: 6091 | H57: 4263 | I57: 0 | J57: 0 | K57: 0 | L57: 0 | M57: 0
A58: 70 | C58: 35226 | D58: 14007 | E58: 9963 | F58: 8510 | G58: 6377 | H58: 4463 | I58: 0 | J58: 0 | K58: 0 | L58: 0 | M58: 0
A59: 71 | C59: 36603 | D59: 15424 | E59: 10969 | F59: 9459 | G59: 7025 | H59: 4921 | I59: 0 | J59: 0 | K59: 0 | L59: 0 | M59: 0
A60: 72 | C60: 37639 | D60: 17072 | E60: 12143 | F60: 10469 | G60: 7780 | H60: 5449 | I60: 0 | J60: 0 | K60: 0 | L60: 0 | M60: 0
A61: 73 | C61: 39022 | D61: 18947 | E61: 13481 | F61: 11614 | G61: 8641 | H61: 6047 | I61: 0 | J61: 0 | K61: 0 | L61: 0 | M61: 0
A62: 74 | C62: 39710 | D62: 21122 | E62: 15028 | F62: 12962 | G62: 9633 | H62: 6747 | I62: 0 | J62: 0 | K62: 0 | L62: 0 | M62: 0
A63: 75 | C63: 41434 | D63: 23769 | E63: 16863 | F63: 14480 | G63: 10801 | H63: 7557 | I63: 0 | J63: 0 | K63: 0 | L63: 0 | M63: 0
A64: 76 | D64: 26651 | E64: 18905 | F64: 16291 | G64: 12106 | H64: 8475 | I64: 0 | J64: 0 | K64: 0 | L64: 0 | M64: 0
A65: 77 | D65: 29937 | E65: 21233 | F65: 18311 | G65: 13601 | H65: 9522 | I65: 0 | J65: 0 | K65: 0 | L65: 0 | M65: 0
A66: 78 | D66: 33635 | E66: 23857 | F66: 20573 | G66: 15282 | H66: 10698 | I66: 0 | J66: 0 | K66: 0 | L66: 0 | M66: 0
A67: 79 | D67: 37790 | E67: 26806 | F67: 23117 | G67: 17167 | H67: 12019 | I67: 0 | J67: 0 | K67: 0 | L67: 0 | M67: 0
A68: 80 | D68: 42762 | E68: 30333 | F68: 26154 | G68: 19430 | H68: 13601 | I68: 0 | J68: 0 | K68: 0 | L68: 0 | M68: 0
A69: 1 Child | B69: Hijo | C69: 2270 | D69: 950 | E69: 670 | F69: 555 | G69: 456 | H69: 319 | I69: 0 | J69: 0 | K69: 0 | L69: 0 | M69: 0
A70: 2 Children | B70: Hijos | C70: 3566 | D70: 1461 | E70: 1062 | F70: 875 | G70: 714 | H70: 501 | I70: 0 | J70: 0 | K70: 0 | L70: 0 | M70: 0
A71: 3+ Children | B71: Hijos o más | C71: 5193 | D71: 2114 | E71: 1546 | F71: 1268 | G71: 1037 | H71: 725 | I71: 0 | J71: 0 | K71: 0 | L71: 0 | M71: 0
A72: 1 | B72: Rider Comp. Maternidad | C72: 0 | D72: 225 | E72: 225 | F72: 225 | G72: 225 | H72: 225
A73: 1 | B73: Transplante de organos | C73: 0 | D73: 300 | E73: 300 | F73: 300 | G73: 300 | H73: 300
A75: TARIFAS SEMESTRALES
A76: EDAD
C77: DW1 | D77: DW2 | E77: DW3 | F77: DW4 | G77: DW5 | H77: DW6
A78: 18 | C78: =+C6*$L$2 -> 3480.51 | D78: =+D6*$L$2 -> 859.66 | E78: 620.1 | F78: 500.32 | G78: 393.26 | H78: 275.6 | I78: DW2 | J78: DW3 | K78: DW4 | L78: DW5 | M78: DW6
A79: 19 | C79: =+C7*$L$2 -> 0 | D79: 890.4 | E79: 641.3 | F79: 517.81 | G79: 404.39 | H79: 283.55 | I79: 0 | J79: 0 | K79: 0 | L79: 0 | M79: 0
A80: 20 | C80: 0 | D80: 916.37 | E80: 660.91 | F80: 534.77 | G80: 418.7 | H80: 293.62 | I80: 0 | J80: 0 | K80: 0 | L80: 0 | M80: 0
A81: 21 | C81: 0 | D81: 947.11 | E81: 682.11 | F81: 551.2 | G81: 429.83 | H81: 302.1 | I81: 0 | J81: 0 | K81: 0 | L81: 0 | M81: 0
A82: 22 | C82: 0 | D82: 976.79 | E82: 703.31 | F82: 569.22 | G82: 444.67 | H82: 312.17 | I82: 0 | J82: 0 | K82: 0 | L82: 0 | M82: 0
A83: 23 | C83: 0 | D83: 1007.53 | E83: 723.98 | F83: 585.65 | G83: 458.45 | H83: 322.24 | I83: 0 | J83: 0 | K83: 0 | L83: 0 | M83: 0
A84: 24 | C84: 0 | D84: 1038.8 | E84: 744.65 | F84: 603.67 | G84: 470.64 | H84: 330.72 | I84: 0 | J84: 0 | K84: 0 | L84: 0 | M84: 0
A85: 25 | C85: 3652.76 | D85: 1067.95 | E85: 767.97 | F85: 620.1 | G85: 483.36 | H85: 339.73 | I85: 0 | J85: 0 | K85: 0 | L85: 0 | M85: 0
A86: 26 | C86: 0 | D86: 1099.22 | E86: 789.17 | F86: 640.24 | G86: 496.61 | H86: 348.74 | I86: 0 | J86: 0 | K86: 0 | L86: 0 | M86: 0
A87: 27 | C87: 0 | D87: 1129.96 | E87: 810.37 | F87: 657.2 | G87: 509.33 | H87: 356.69 | I87: 0 | J87: 0 | K87: 0 | L87: 0 | M87: 0
A88: 28 | C88: 0 | D88: 1198.33 | E88: 859.13 | F88: 694.83 | G88: 540.07 | H88: 378.42 | I88: 0 | J88: 0 | K88: 0 | L88: 0 | M88: 0
A89: 29 | C89: 0 | D89: 1264.05 | E89: 907.89 | F89: 731.4 | G89: 569.22 | H89: 398.03 | I89: 0 | J89: 0 | K89: 0 | L89: 0 | M89: 0
A90: 30 | C90: 3776.25 | D90: 1331.36 | E90: 956.12 | F90: 771.15 | G90: 597.31 | H90: 419.23 | I90: 0 | J90: 0 | K90: 0 | L90: 0 | M90: 0
A91: 31 | C91: 0 | D91: 1398.67 | E91: 1007.53 | F91: 810.37 | G91: 626.46 | H91: 438.84 | I91: 0 | J91: 0 | K91: 0 | L91: 0 | M91: 0
A92: 32 | C92: 0 | D92: 1465.98 | E92: 1057.35 | F92: 848 | G92: 656.67 | H92: 460.04 | I92: 0 | J92: 0 | K92: 0 | L92: 0 | M92: 0
A93: 33 | C93: 0 | D93: 1500.96 | E93: 1078.02 | F93: 868.67 | G93: 668.33 | H93: 467.46 | I93: 0 | J93: 0 | K93: 0 | L93: 0 | M93: 0
A94: 34 | C94: 0 | D94: 1536.47 | E94: 1099.22 | F94: 891.46 | G94: 681.58 | H94: 477 | I94: 0 | J94: 0 | K94: 0 | L94: 0 | M94: 0
A95: 35 | C95: 4221.98 | D95: 1570.39 | E95: 1120.42 | F95: 911.6 | G95: 692.18 | H95: 486.54 | I95: 0 | J95: 0 | K95: 0 | L95: 0 | M95: 0
A96: 36 | C96: 0 | D96: 1604.84 | E96: 1141.09 | F96: 932.8 | G96: 704.37 | H96: 493.96 | I96: 0 | J96: 0 | K96: 0 | L96: 0 | M96: 0
A97: 37 | C97: 0 | D97: 1641.94 | E97: 1161.76 | F97: 954 | G97: 716.56 | H97: 500.32 | I97: 0 | J97: 0 | K97: 0 | L97: 0 | M97: 0
A98: 38 | C98: 0 | D98: 1694.94 | E98: 1199.39 | F98: 980.5 | G98: 739.35 | H98: 517.81 | I98: 0 | J98: 0 | K98: 0 | L98: 0 | M98: 0
A99: 39 | C99: 0 | D99: 1748.47 | E99: 1234.9 | F99: 1007.53 | G99: 760.55 | H99: 532.65 | I99: 0 | J99: 0 | K99: 0 | L99: 0 | M99: 0
A100: 40 | C100: 4886.07 | D100: 1804.12 | E100: 1272 | F100: 1034.03 | G100: 782.28 | H100: 549.08 | I100: 0 | J100: 0 | K100: 0 | L100: 0 | M100: 0
A101: 41 | C101: 0 | D101: 1856.59 | E101: 1309.1 | F101: 1062.65 | G101: 805.6 | H101: 562.86 | I101: 0 | J101: 0 | K101: 0 | L101: 0 | M101: 0
A102: 42 | C102: 0 | D102: 1911.71 | E102: 1343.02 | F102: 1087.56 | G102: 826.27 | H102: 578.23 | I102: 0 | J102: 0 | K102: 0 | L102: 0 | M102: 0
A103: 43 | C103: 0 | D103: 1984.85 | E103: 1393.37 | F103: 1127.84 | G103: 858.07 | H103: 599.96 | I103: 0 | J103: 0 | K103: 0 | L103: 0 | M103: 0
A104: 44 | C104: 0 | D104: 2059.58 | E104: 1444.78 | F104: 1169.71 | G104: 887.75 | H104: 622.22 | I104: 0 | J104: 0 | K104: 0 | L104: 0 | M104: 0
A105: 45 | C105: 5455.82 | D105: 2136.96 | E105: 1495.13 | F105: 1209.46 | G105: 916.9 | H105: 642.89 | I105: 0 | J105: 0 | K105: 0 | L105: 0 | M105: 0
A106: 46 | C106: 0 | D106: 2209.57 | E106: 1544.95 | F106: 1250.27 | G106: 949.76 | H106: 663.56 | I106: 0 | J106: 0 | K106: 0 | L106: 0 | M106: 0
A107: 47 | C107: 0 | D107: 2284.83 | E107: 1594.24 | F107: 1291.08 | G107: 980.5 | H107: 686.88 | I107: 0 | J107: 0 | K107: 0 | L107: 0 | M107: 0
A108: 48 | C108: 0 | D108: 2409.91 | E108: 1681.69 | F108: 1368.46 | G108: 1046.75 | H108: 731.4 | I108: 0 | J108: 0 | K108: 0 | L108: 0 | M108: 0
A109: 49 | C109: 0 | D109: 2534.99 | E109: 1767.55 | F109: 1445.84 | G109: 1112.47 | H109: 779.63 | I109: 0 | J109: 0 | K109: 0 | L109: 0 | M109: 0
A110: 50 | C110: 7089.81 | D110: 2658.48 | E110: 1853.94 | F110: 1525.34 | G110: 1178.72 | H110: 826.27 | I110: 0 | J110: 0 | K110: 0 | L110: 0 | M110: 0
A111: 51 | C111: 0 | D111: 2783.03 | E111: 1940.33 | F111: 1602.72 | G111: 1244.44 | H111: 871.32 | I111: 0 | J111: 0 | K111: 0 | L111: 0 | M111: 0
A112: 52 | C112: 0 | D112: 2908.11 | E112: 2025.13 | F112: 1680.63 | G112: 1311.75 | H112: 916.9 | I112: 0 | J112: 0 | K112: 0 | L112: 0 | M112: 0
A113: 53 | C113: 0 | D113: 3021.53 | E113: 2125.83 | F113: 1779.21 | G113: 1374.29 | H113: 964.6 | I113: 0 | J113: 0 | K113: 0 | L113: 0 | M113: 0
A114: 54 | C114: 0 | D114: 3133.89 | E114: 2223.88 | F114: 1878.32 | G114: 1438.42 | H114: 1007.53 | I114: 0 | J114: 0 | K114: 0 | L114: 0 | M114: 0
A115: 55 | C115: 7540.84 | D115: 3247.31 | E115: 2323.52 | F115: 1975.84 | G115: 1500.96 | H115: 1052.05 | I115: 0 | J115: 0 | K115: 0 | L115: 0 | M115: 0
A116: 56 | C116: 0 | D116: 3360.2 | E116: 2422.63 | F116: 2078.66 | G116: 1564.03 | H116: =+H44*$L$2 -> 1096.04 | I116: 0 | J116: 0 | K116: 0 | L116: 0 | M116: 0
A117: 57 | C117: 0 | D117: =+D45*$L$2 -> 3476.27 | E117: 2521.21 | F117: 2177.77 | G117: 1626.04 | H117: 1139.5 | I117: 0 | J117: 0 | K117: 0 | L117: 0 | M117: 0
A118: 58 | C118: 0 | D118: =+D46*$L$2 -> 3659.12 | E118: 2622.44 | F118: 2254.09 | G118: 1690.7 | H118: 1184.55 | I118: 0 | J118: 0 | K118: 0 | L118: 0 | M118: 0
A119: 59 | C119: 0 | D119: =+D47*$L$2 -> 3840.38 | E119: 2720.49 | F119: 2333.06 | G119: 1752.18 | H119: 1228.54 | I119: 0 | J119: 0 | K119: 0 | L119: 0 | M119: 0
A120: 60 | C120: 8020.49 | D120: =+D48*$L$2 -> 4024.82 | E120: 2818.54 | F120: 2409.91 | G120: 1816.31 | H120: 1272 | I120: 0 | J120: 0 | K120: 0 | L120: 0 | M120: 0
A121: 61 | C121: 8614.09 | D121: =+D49*$L$2 -> 4176.93 | E121: 2921.89 | F121: 2514.85 | G121: 1887.33 | H121: 1320.23 | I121: 0 | J121: 0 | K121: 0 | L121: 0 | M121: 0
A122: 62 | C122: 9426.05 | D122: =+D50*$L$2 -> 4366.67 | E122: 3059.16 | F122: 2636.75 | G122: 1974.78 | H122: 1383.3 | I122: 0 | J122: 0 | K122: 0 | L122: 0 | M122: 0
A123: 63 | C123: 10017.53 | D123: =+D51*$L$2 -> 4591.39 | E123: 3213.92 | F123: 2772.43 | G123: 2077.6 | H123: 1454.32 | I123: 0 | J123: 0 | K123: 0 | L123: 0 | M123: 0
A124: 64 | C124: 10833.2 | D124: =+D52*$L$2 -> 4850.03 | E124: 3396.77 | F124: 2934.08 | G124: 2196.85 | H124: 1537.53 | I124: 0 | J124: 0 | K124: 0 | L124: 0 | M124: 0
A125: 65 | C125: 11351.54 | D125: =+D53*$L$2 -> 5070.51 | E125: 3638.98 | F125: 3141.31 | G125: 2345.25 | H125: 1643 | I125: 0 | J125: 0 | K125: 0 | L125: 0 | M125: 0
A126: 66 | C126: 11866.7 | D126: =+D54*$L$2 -> 5477.55 | E126: 3916.7 | F126: 3379.81 | G126: 2520.68 | H126: 1764.9 | I126: 0 | J126: 0 | K126: 0 | L126: 0 | M126: 0
A127: 67 | C127: 12957.97 | D127: =+D55*$L$2 -> 5919.04 | E127: 4232.05 | F127: 3651.7 | G127: 2724.73 | H127: 1905.35 | I127: 0 | J127: 0 | K127: 0 | L127: 0 | M127: 0
A128: 68 | C128: 14343.39 | D128: =+D56*$L$2 -> 6414.59 | E128: 4591.39 | F128: 3960.69 | G128: 2957.4 | H128: 2069.12 | I128: 0 | J128: 0 | K128: 0 | L128: 0 | M128: 0
A129: 69 | C129: 15775.98 | D129: =+D57*$L$2 -> 7006.07 | E129: 5015.39 | F129: 4325.86 | G129: 3228.23 | H129: 2259.39 | I129: 0 | J129: 0 | K129: 0 | L129: 0 | M129: 0
A130: 70 | C130: 18669.78 | D130: =+D58*$L$2 -> 7423.71 | E130: 5280.39 | F130: 4510.3 | G130: 3379.81 | H130: 2365.39 | I130: 0 | J130: 0 | K130: 0 | L130: 0 | M130: 0
A131: 71 | C131: 19399.59 | D131: =+D59*$L$2 -> 8174.72 | E131: 5813.57 | F131: 5013.27 | G131: 3723.25 | H131: 2608.13 | I131: 0 | J131: 0 | K131: 0 | L131: 0 | M131: 0
A132: 72 | C132: 19948.67 | D132: =+D60*$L$2 -> 9048.16 | E132: 6435.79 | F132: 5548.57 | G132: 4123.4 | H132: 2887.97 | I132: 0 | J132: 0 | K132: 0 | L132: 0 | M132: 0
A133: 73 | C133: 20681.66 | D133: =+D61*$L$2 -> 10041.91 | E133: 7144.93 | F133: 6155.42 | G133: 4579.73 | H133: 3204.91 | I133: 0 | J133: 0 | K133: 0 | L133: 0 | M133: 0
A134: 74 | C134: 21046.3 | D134: =+D62*$L$2 -> 11194.66 | E134: 7964.84 | F134: 6869.86 | G134: 5105.49 | H134: 3575.91 | I134: 0 | J134: 0 | K134: 0 | L134: 0 | M134: 0
A135: 75 | C135: 21960.02 | D135: =+D63*$L$2 -> 12597.57 | E135: 8937.39 | F135: 7674.4 | G135: 5724.53 | H135: 4005.21 | I135: 0 | J135: 0 | K135: 0 | L135: 0 | M135: 0
A136: 76 | C136: 0 | D136: =+D64*$L$2 -> 14125.03 | E136: 10019.65 | F136: 8634.23 | G136: 6416.18 | H136: 4491.75 | I136: 0 | J136: 0 | K136: 0 | L136: 0 | M136: 0
A137: 77 | C137: 0 | D137: =+D65*$L$2 -> 15866.61 | E137: 11253.49 | F137: 9704.83 | G137: 7208.53 | H137: 5046.66 | I137: 0 | J137: 0 | K137: 0 | L137: 0 | M137: 0
A138: 78 | C138: 0 | D138: =+D66*$L$2 -> 17826.55 | E138: 12644.21 | F138: 10903.69 | G138: 8099.46 | H138: 5669.94 | I138: 0 | J138: 0 | K138: 0 | L138: 0 | M138: 0
A139: 79 | C139: 0 | D139: =+D67*$L$2 -> 20028.7 | E139: 14207.18 | F139: 12252.01 | G139: 9098.51 | H139: 6370.07 | I139: 0 | J139: 0 | K139: 0 | L139: 0 | M139: 0
A140: 80 | C140: 0 | D140: =+D68*$L$2 -> 22663.86 | E140: 16076.49 | F140: 13861.62 | G140: 10297.9 | H140: 7208.53 | I140: 0 | J140: 0 | K140: 0 | L140: 0 | M140: 0
A141: 1 Child | B141: Hijo | C141: 1203.1 | D141: =+D69*$L$2 -> 503.5 | E141: 355.1 | F141: 294.15 | G141: 241.68 | H141: 169.07 | I141: 0 | J141: 0 | K141: 0 | L141: 0 | M141: 0
A142: 2 Children | B142: Hijos | C142: 1889.98 | D142: =+D70*$L$2 -> 774.33 | E142: 562.86 | F142: 463.75 | G142: 378.42 | H142: 265.53 | I142: 0 | J142: 0 | K142: 0 | L142: 0 | M142: 0
A143: 3+ Children | B143: Hijos o más | C143: =+C71*$L$2 -> 2752.29 | D143: 1120.42 | E143: 819.38 | F143: 672.04 | G143: 549.61 | H143: 384.25 | I143: 0 | J143: 0 | K143: 0 | L143: 0 | M143: 0
A144: 1 | B144: Rider Comp. Maternidad | C144: 0 | D144: 119.25 | E144: 119.25 | F144: 119.25 | G144: 119.25 | H144: 119.25
A145: 1 | B145: Transplante de organos | C145: 0 | D145: 159 | E145: 159 | F145: 159 | G145: 159 | H145: 159
